fUSD/lending_fUSD_20240328
["ID","MTS","AMOUNT","RATE_DAILY","PERIOD"]
[320865137,1711650642923,-500.0,0.00049315,120]
[320865138,1711650642932,-500.0,0.00049315,120]
[320865139,1711650642941,-809.15517246,0.00049315,120]
[320865148,1711650643222,-489.3975096,0.00049315,120]
[320865152,1711650643253,-552.25731794,0.00049315,120]
[320865154,1711650643263,-1142.08655041,0.00049315,120]
[320865155,1711650643274,-2098.90344959,0.00049315,120]
[320865156,1711650643284,-176.10043,0.00049315,46]
[320865157,1711650643294,-3475.66,0.00049315,120]
[320865158,1711650643303,-269.824,0.00049315,120]
[320865159,1711650643312,-576.22,0.00049315,120]
[320865161,1711650643322,-500.0,0.00049315,120]
[320865163,1711650643331,-2003.77,0.00049315,120]
[320865164,1711650643341,-500.0,0.00049315,120]
[320865165,1711650643352,-1792.69,0.00049315,120]
[320865166,1711650643363,-442.72968826,0.00049315,120]
[320865167,1711650643373,-603.02310527,0.00049315,120]
[320865168,1711650643382,-1345.13,0.00049315,120]
[320865169,1711650643391,-889.51,0.00049315,120]
[320865170,1711650643401,-2498.63,0.00049315,120]
[320865171,1711650643410,-589.64,0.00049315,120]
[320865172,1711650643419,-962.41,0.00049315,120]
[320865173,1711650643429,-500.0,0.00049315,120]
[320865174,1711650643438,-2247.54,0.00049315,120]
[320865175,1711650643449,-1633.95,0.00049315,120]
[320865176,1711650643458,-223.45537993,0.00049315,2]
[320865177,1711650643468,-500.0,0.00049315,120]
[320865178,1711650643478,-3388.51,0.00049315,120]
[320865179,1711650643488,-263.35213139,0.00049315,120]
[320865180,1711650643497,-532.78,0.00049315,120]
[320865181,1711650643507,-1505.51,0.00049315,120]
[320865182,1711650643516,-1063.38,0.00049315,120]
[320865183,1711650643526,-500.0,0.00049315,120]
[320865184,1711650643535,-815.46,0.00049315,120]
[320865185,1711650643545,-1578.72,0.00049315,120]
[320865186,1711650643555,-500.0,0.00049315,120]
[320865187,1711650643565,-2598.41,0.00049315,120]
[320865188,1711650643575,-1726.67,0.00049315,120]
[320865189,1711650643584,-2765.61,0.00049315,120]
[320865190,1711650643594,-500.0,0.00049315,120]
[320865191,1711650643604,-741.05,0.00049315,120]
[320865192,1711650643613,-500.0,0.00049315,120]
[320865193,1711650643623,-500.0,0.00049315,120]
[320865194,1711650643633,-500.0,0.00049315,120]
[320865195,1711650643642,-903.88,0.00049315,120]
[320865196,1711650643653,-2398.0,0.00049315,120]
[320865197,1711650643663,-500.0,0.00049315,120]
[320865198,1711650643672,-10282.7,0.00049315,120]
[320865199,1711650643685,-1170.83,0.00049315,120]
[320865200,1711650643694,-1195.28,0.00049315,120]
[320865201,1711650643704,-802.67,0.00049315,120]
[320865202,1711650643714,-500.0,0.00049315,120]
[320865203,1711650643724,-13303.61,0.00049315,120]
[320865204,1711650643734,-1173.14771719,0.00049315,120]
[320865205,1711650643753,-218.68228281,0.00049315,120]
[320865206,1711650643764,-500.0,0.00049315,120]
[320865207,1711650643774,-852.47,0.00049315,120]
[320865208,1711650643783,-555.84771719,0.00049315,120]
[320865209,1711650643795,-6315.50895847,0.00049315,120]
[320865219,1711650644656,-1464.51573828,0.00049315,120]
[320865220,1711650644681,-2164.04758606,0.00049315,120]
[320865221,1711650644693,-2084.75,0.00049315,120]
[320865222,1711650644703,-652.95,0.00049315,120]
[320865223,1711650644713,-982.07,0.00049315,120]
[320865224,1711650644722,-500.0,0.00049315,120]
[320865225,1711650644732,-500.0,0.00049315,120]
[320865226,1711650644741,-910.05,0.00049315,120]
[320865227,1711650644751,-506.64,0.00049315,120]
[320865228,1711650644761,-1869.29,0.00049315,120]
[320865229,1711650644770,-396.79914724,0.00049315,120]
[320865235,1711650646694,-34145.0655,0.00049215,120]
[320865236,1711650646703,-2280.36085276,0.00049315,120]
[320865237,1711650646713,-3304.03,0.00049315,120]
[320865238,1711650646723,-884.55,0.00049315,120]
[320865239,1711650646733,-500.0,0.00049315,120]
[320865240,1711650646743,-1272.55,0.00049315,120]
[320865241,1711650646752,-1495.17,0.00049315,120]
[320865242,1711650646764,-617.44,0.00049315,120]
[320865243,1711650646774,-1744.33,0.00049315,120]
[320865244,1711650646783,-656.82,0.00049315,120]
[320865245,1711650646793,-2437.63,0.00049315,120]
[320865246,1711650646802,-1114.49,0.00049315,120]
[320865247,1711650646811,-500.0,0.00049315,120]
[320865248,1711650646820,-1678.19,0.00049315,120]
[320865249,1711650646830,-1523.77,0.00049315,120]
[320865250,1711650646839,-500.0,0.00049315,120]
[320865251,1711650646848,-1091.85,0.00049315,120]
[320865252,1711650646857,-589.56,0.00049315,120]
[320865253,1711650646866,-5877.37398145,0.00049315,120]
[320865279,1711651831466,-345.0,0.00028898,2]
[320865280,1711651831476,-54.96108814,0.00028898,2]
[320865281,1711651831523,-326.33051176,0.00028898,2]
[320865282,1711651831692,-801.36554768,0.00028898,2]
[320865283,1711651831753,-1395.94038768,0.00028898,2]
[320865284,1711651831765,-1041.49275445,0.00028898,2]
[320865285,1711651831775,-350.0,0.00029,3]
[320865286,1711651831784,-999.99,0.000293,2]
[320865287,1711651831795,-166.86115365,0.000294,2]
[320865288,1711651831804,-421.25554858,0.000295,3]
[320865332,1711651837394,-1113.91517374,0.00028798,2]
[320865334,1711651837404,-155.0,0.00028897,3]
[320865336,1711651837414,-18.87228365,0.000295,3]
[320865337,1711651837424,-1073.89142162,0.0003,4]
[320865338,1711651837434,-400.0,0.00031,3]
[320865339,1711651837444,-450.0,0.00033,3]
[320865340,1711651837454,-150.0,0.00034548,10]
[320865341,1711651837464,-335.24456699,0.00035,3]
[320865342,1711651837489,-164.75543301,0.00035,3]
[320865343,1711651837499,-237.97,0.00035,2]
[320865344,1711651837509,-120.22667811,0.00036096,2]
[320865345,1711651837533,-46.63447552,0.00036096,2]
[320865346,1711651837544,-1038.78373272,0.00036815,2]
[320865347,1711651837628,-688.5,0.00036815,2]
[320865348,1711651837640,-5374.33373128,0.00036815,2]
[320865349,1711651837650,-550.0,0.00037,3]
[320865350,1711651837659,-362.27510157,0.0003826,4]
[320865351,1711651837669,-195.01,0.00038356,2]
[320865352,1711651837679,-600.0,0.00039,3]
[320865353,1711651837688,-150.0,0.00040575,2]
[320865354,1711651837698,-650.0,0.00041,3]
[320865355,1711651837707,-166.86115363,0.00042793,2]
[320865356,1711651837717,-700.0,0.00043,3]
[320865357,1711651837727,-300.0,0.00044199,2]
[320865358,1711651837736,-1054.69338501,0.000443,2]
[320865359,1711651837745,-406.52,0.00044564,2]
[320865360,1711651837755,-813.86,0.00044682,120]
[320865361,1711651837766,-467.0,0.00044867,2]
[320865363,1711651837775,-1500.0,0.00044953,120]
[320865364,1711651837784,-750.0,0.00045,3]
[320865365,1711651837793,-164.82,0.00045706,2]
[320865366,1711651837802,-450.97,0.00045771,2]
[320865367,1711651837811,-893.5695,0.000458,2]
[320865368,1711651837821,-639.87,0.00045934,2]
[320865369,1711651837830,-406.52,0.00046827,2]
[320865370,1711651837839,-800.0,0.00047,3]
[320865371,1711651837850,-213.0,0.00047516,2]
[320865372,1711651837859,-162.27,0.00047622,2]
[320865373,1711651837869,-613.43,0.00047694,2]
[320865374,1711651837878,-641.5,0.00047721,2]
[320865376,1711651837888,-775.04,0.00047759,2]
[320865378,1711651837897,-250.0,0.00047793,112]
[320865380,1711651837907,-1200.0,0.00047808,2]
[320865382,1711651837916,-150.97,0.00047816,15]
[320865384,1711651837926,-1652.62174025,0.00047826,2]
[320865386,1711651837935,-155.0,0.00047826,4]
[320865388,1711651837946,-15602.5433,0.00047826,4]
[320865390,1711651837955,-214.86376505,0.00047827,4]
[320865392,1711651837965,-12755.71641849,0.00047827,4]
[320865394,1711651837975,-23890.0,0.00047828,2]
[320865396,1711651837985,-769.96,0.00047838,120]
[320865398,1711651837994,-162.27,0.0004787,2]
[320865400,1711651838004,-1000.0,0.00048002,30]
[320865402,1711651838014,-191.4,0.00048093,30]
[320865404,1711651838025,-2593.13,0.00048103,2]
[320865405,1711651838035,-162.27,0.00048118,2]
[320865407,1711651838045,-158.16674897,0.00048153,30]
[320865409,1711651838055,-154.28191064,0.00048178,30]
[320865411,1711651838064,-224.96,0.00048184,2]
[320865413,1711651838075,-191.4,0.00048266,30]
[320865415,1711651838084,-162.27,0.00048366,2]
[320865416,1711651838095,-151.67,0.00048498,2]
[320865418,1711651838104,-151.67,0.0004852,2]
[320865420,1711651838115,-151.67,0.00048542,2]
[320865422,1711651838124,-151.67,0.00048564,2]
[320865424,1711651838134,-151.67,0.00048586,2]
[320865426,1711651838144,-151.67,0.00048608,2]
[320865428,1711651838153,-162.27,0.00048615,2]
[320865430,1711651838163,-151.67,0.0004863,2]
[320865432,1711651838172,-151.67,0.00048652,2]
[320865434,1711651838181,-151.67,0.00048674,2]
[320865436,1711651838191,-151.67,0.00048696,2]
[320865438,1711651838200,-151.67,0.00048719,2]
[320865440,1711651838209,-151.67,0.00048741,2]
[320865442,1711651838219,-191.4,0.00048816,30]
[320865444,1711651838228,-162.27,0.00048863,2]
[320865446,1711651838238,-159.52589014,0.00048913,30]
[320865448,1711651838248,-24658.0,0.00049,30]
[320865450,1711651838257,-1697.41839639,0.00049,2]
[320865452,1711651838267,-850.0,0.00049,3]
[320865454,1711651838277,-1000.0,0.00049,120]
[320865456,1711651838290,-406.52,0.00049091,2]
[320865458,1711651838299,-162.27,0.00049111,2]
[320865460,1711651838309,-12000.0,0.00049138,2]
[320865462,1711651838321,-365.97131011,0.00049215,2]
[320865464,1711651838331,-232.20161394,0.00049215,14]
[320865466,1711651838341,-392.5128,0.00049215,2]
[320865468,1711651838350,-34500.5314,0.00049215,2]
[320865470,1711651838360,-4429.9999,0.00049215,2]
[320865472,1711651838369,-3471.2427,0.00049215,2]
[320865474,1711651838378,-2500.0,0.00049215,3]
[320865476,1711651838388,-1000.0,0.00049215,2]
[320865479,1711651838409,-365.9713101,0.00049284,2]
[320865481,1711651838418,-220.9722951,0.000493,120]
[320865483,1711651838429,-174.75,0.00049305,2]
[320865485,1711651838438,-2789.7091309,0.00049313,2]
[320865487,1711651838448,-341.24700267,0.00049314,4]
[320865489,1711651838457,-774.14453757,0.00049314,4]
[320865491,1711651838466,-505.77949815,0.00049315,120]
[320865493,1711651838476,-422.88803452,0.00049315,120]
[320865495,1711651838485,-500.0,0.00049315,2]
[320865497,1711651838495,-432.89383155,0.00049315,2]
[320865500,1711651838505,-500.0,0.00049315,2]
[320865501,1711651838516,-500.0,0.00049315,120]
[320865504,1711651838526,-500.0,0.00049315,120]
[320865506,1711651838536,-579.68749249,0.00049315,120]
[320865508,1711651838545,-500.0,0.00049315,120]
[320865510,1711651838554,-500.0,0.00049315,120]
[320865512,1711651838564,-500.0,0.00049315,120]
[320865514,1711651838575,-500.0,0.00049315,120]
[320865516,1711651838584,-500.0,0.00049315,120]
[320865518,1711651838593,-500.00000044,0.00049315,120]
[320865520,1711651838602,-500.0,0.00049315,120]
[320865522,1711651838611,-500.0,0.00049315,120]
[320865556,1711651838917,-500.0,0.00049315,120]
[320865559,1711651838933,-500.0,0.00049315,120]
[320865561,1711651838942,-500.0,0.00049315,120]
[320865563,1711651838951,-500.0,0.00049315,120]
[320865565,1711651838960,-1335.16,0.00049315,120]
[320865567,1711651838970,-500.0,0.00049315,120]
[320865568,1711651838979,-647.47091956,0.00049315,120]
[320865570,1711651838988,-500.0,0.00049315,120]
[320865572,1711651838997,-500.0,0.00049315,120]
[320865574,1711651839007,-500.0,0.00049315,120]
[320865576,1711651839019,-500.0,0.00049315,120]
[320865578,1711651839028,-500.0,0.00049315,120]
[320865580,1711651839037,-608.05,0.00049315,120]
[320865582,1711651839047,-500.0,0.00049315,120]
[320865584,1711651839056,-500.0,0.00049315,120]
[320865586,1711651839068,-500.0,0.00049315,120]
[320865588,1711651839078,-500.0,0.00049315,120]
[320865590,1711651839088,-500.0,0.00049315,120]
[320865593,1711651839098,-500.0,0.00049315,120]
[320865595,1711651839108,-500.0,0.00049315,120]
[320865596,1711651839117,-500.0,0.00049315,120]
[320865598,1711651839127,-500.0,0.00049315,120]
[320865600,1711651839136,-500.0,0.00049315,120]
[320865602,1711651839146,-648.82,0.00049315,120]
[320865604,1711651839155,-500.0,0.00049315,120]
[320865606,1711651839165,-500.0,0.00049315,120]
[320865608,1711651839175,-558.27,0.00049315,120]
[320865610,1711651839188,-500.0,0.00049315,120]
[320865612,1711651839197,-586.1,0.00049315,120]
[320865614,1711651839207,-500.0,0.00049315,120]
[320865616,1711651839218,-500.0,0.00049315,120]
[320865618,1711651839227,-500.0,0.00049315,120]
[320865620,1711651839238,-500.0,0.00049315,120]
[320865623,1711651839247,-892.97,0.00049315,120]
[320865625,1711651839256,-500.0,0.00049315,120]
[320865626,1711651839266,-500.0,0.00049315,120]
[320865628,1711651839275,-500.0,0.00049315,120]
[320865631,1711651839285,-500.0,0.00049315,120]
[320865633,1711651839293,-500.0,0.00049315,120]
[320865634,1711651839302,-500.0,0.00049315,120]
[320865636,1711651839312,-500.0,0.00049315,120]
[320865638,1711651839325,-500.0,0.00049315,120]
[320865642,1711651839335,-500.0,0.00049315,120]
[320865645,1711651839344,-670.83,0.00049315,120]
[320865647,1711651839353,-500.0,0.00049315,120]
[320865650,1711651839362,-500.0,0.00049315,120]
[320865652,1711651839371,-500.0,0.00049315,120]
[320865655,1711651839383,-500.0,0.00049315,120]
[320865657,1711651839393,-500.0,0.00049315,120]
[320865659,1711651839402,-500.0,0.00049315,120]
[320865661,1711651839412,-500.0,0.00049315,120]
[320865663,1711651839421,-603.98,0.00049315,120]
[320865666,1711651839430,-591.89,0.00049315,120]
[320865669,1711651839440,-623.75,0.00049315,120]
[320865672,1711651839450,-500.0,0.00049315,120]
[320865674,1711651839459,-500.0,0.00049315,120]
[320865676,1711651839469,-500.0,0.00049315,120]
[320865678,1711651839478,-500.0,0.00049315,120]
[320865680,1711651839487,-500.0,0.00049315,120]
[320865682,1711651839496,-500.0,0.00049315,120]
[320865684,1711651839505,-500.0,0.00049315,120]
[320865686,1711651839514,-500.0,0.00049315,120]
[320865688,1711651839524,-265.93715234,0.00049315,120]
[320865690,1711651839533,-500.0,0.00049315,120]
[320865692,1711651839543,-500.0,0.00049315,120]
[320865694,1711651839552,-502.53961043,0.00049315,120]
[320865696,1711651839561,-540.11,0.00049315,120]
[320865698,1711651839572,-678.11,0.00049315,120]
[320865700,1711651839581,-484.63217402,0.00049315,120]
[320865702,1711651839591,-197.81713936,0.00049315,120]
[320865704,1711651839600,-500.0,0.00049315,120]
[320865706,1711651839609,-500.0,0.00049315,120]
[320865708,1711651839619,-500.0,0.00049315,120]
[320865710,1711651839629,-500.0,0.00049315,120]
[320865712,1711651839638,-500.0,0.00049315,120]
[320865714,1711651839647,-584.17,0.00049315,120]
[320865716,1711651839657,-558.02,0.00049315,120]
[320865718,1711651839666,-500.0,0.00049315,120]
[320865720,1711651839676,-500.0,0.00049315,2]
[320865722,1711651839685,-500.0,0.00049315,120]
[320865724,1711651839695,-500.0,0.00049315,120]
[320865726,1711651839704,-909.25,0.00049315,120]
[320865728,1711651839713,-500.0,0.00049315,120]
[320865730,1711651839723,-500.0,0.00049315,120]
[320865732,1711651839732,-500.0,0.00049315,120]
[320865734,1711651839742,-577.56,0.00049315,120]
[320865736,1711651839751,-500.0,0.00049315,120]
[320865738,1711651839760,-500.0,0.00049315,120]
[320865740,1711651839770,-500.0,0.00049315,120]
[320865743,1711651839779,-495.45770696,0.00049315,120]
[320865745,1711651839789,-500.0,0.00049315,120]
[320865746,1711651839799,-500.0,0.00049315,120]
[320865748,1711651839808,-500.0,0.00049315,120]
[320865751,1711651839821,-629.98,0.00049315,120]
[320865753,1711651839831,-500.0,0.00049315,120]
[320865755,1711651839841,-842.68,0.00049315,120]
[320865757,1711651839852,-500.0,0.00049315,120]
[320865759,1711651839862,-500.0,0.00049315,120]
[320865761,1711651839871,-908.45,0.00049315,120]
[320865763,1711651839881,-500.0,0.00049315,120]
[320865765,1711651839890,-500.0,0.00049315,120]
[320865767,1711651839899,-500.0,0.00049315,120]
[320865769,1711651839909,-500.0,0.00049315,30]
[320865771,1711651839922,-500.0,0.00049315,120]
[320865773,1711651839931,-584.08,0.00049315,120]
[320865775,1711651839940,-621.65917336,0.00049315,4]
[320865777,1711651839950,-401.69194215,0.00049315,120]
[320865779,1711651839959,-363.99076664,0.00049315,4]
[320865781,1711651839968,-500.0,0.00049315,120]
[320865783,1711651839978,-508.45462986,0.00049315,120]
[320865785,1711651839987,-500.0,0.00049315,120]
[320865787,1711651839997,-174.98483013,0.00049315,2]
[320865789,1711651840006,-500.0,0.00049315,120]
[320865791,1711651840018,-500.0,0.00049315,120]
[320865793,1711651840028,-598.61,0.00049315,120]
[320865795,1711651840037,-500.0,0.00049315,120]
[320865796,1711651840047,-500.0,0.00049315,120]
[320865797,1711651840057,-1099.13,0.00049315,120]
[320865798,1711651840067,-503.49445238,0.00049315,120]
[320865799,1711651840078,-506.15246699,0.00049315,120]
[320865800,1711651840086,-1038.12,0.00049315,120]
[320865801,1711651840097,-500.0,0.00049315,120]
[320865802,1711651840107,-500.0,0.00049315,120]
[320865804,1711651840116,-500.0,0.00049315,120]
[320865805,1711651840126,-500.0,0.00049315,120]
[320865807,1711651840135,-522.84278747,0.00049315,120]
[320865809,1711651840145,-500.0,0.00049315,120]
[320865811,1711651840154,-500.0,0.00049315,120]
[320865813,1711651840163,-500.0,0.00049315,120]
[320865815,1711651840173,-500.0,0.00049315,120]
[320865817,1711651840182,-687.07,0.00049315,120]
[320865818,1711651840191,-1129.03,0.00049315,120]
[320865819,1711651840201,-561.63,0.00049315,120]
[320865820,1711651840210,-500.0,0.00049315,120]
[320865821,1711651840220,-982.58,0.00049315,120]
[320865822,1711651840230,-503.72995215,0.00049315,120]
[320865823,1711651840239,-500.0,0.00049315,120]
[320865825,1711651840248,-500.0,0.00049315,120]
[320865827,1711651840258,-607.02,0.00049315,120]
[320865829,1711651840268,-500.0,0.00049315,120]
[320865831,1711651840277,-627.61,0.00049315,120]
[320865833,1711651840286,-19075.24177475,0.00049315,4]
[320865835,1711651840296,-500.0,0.00049315,120]
[320865837,1711651840306,-500.0,0.00049315,120]
[320865840,1711651840315,-500.0,0.00049315,120]
[320865842,1711651840326,-703.03,0.00049315,120]
[320865844,1711651840335,-500.0,0.00049315,120]
[320865846,1711651840344,-500.0,0.00049315,120]
[320865848,1711651840354,-500.0,0.00049315,120]
[320865850,1711651840363,-500.0,0.00049315,120]
[320865852,1711651840372,-500.0,0.00049315,120]
[320865854,1711651840381,-1066.63,0.00049315,120]
[320865856,1711651840390,-1037.88,0.00049315,120]
[320865857,1711651840399,-500.0,0.00049315,120]
[320865859,1711651840408,-500.0,0.00049315,120]
[320865861,1711651840418,-500.0,0.00049315,120]
[320865863,1711651840428,-500.0,0.00049315,120]
[320865865,1711651840437,-500.0,0.00049315,120]
[320865867,1711651840446,-500.0,0.00049315,120]
[320865870,1711651840457,-500.0,0.00049315,120]
[320865872,1711651840466,-312.55,0.00049315,120]
[320865874,1711651840475,-500.0,0.00049315,120]
[320865876,1711651840485,-573.5290868,0.00049315,120]
[320865878,1711651840494,-500.0,0.00049315,120]
[320865880,1711651840504,-501.44,0.00049315,120]
[320865882,1711651840513,-500.0,0.00049315,120]
[320865884,1711651840522,-500.0,0.00049315,120]
[320865886,1711651840531,-793.0,0.00049315,120]
[320865888,1711651840541,-327.48242047,0.00049315,120]
[320865890,1711651840550,-500.0,0.00049315,120]
[320865892,1711651840559,-500.0,0.00049315,120]
[320865894,1711651840568,-759.68,0.00049315,120]
[320865896,1711651840579,-500.0,0.00049315,120]
[320865898,1711651840588,-500.0,0.00049315,120]
[320865900,1711651840597,-500.0,0.00049315,120]
[320865902,1711651840607,-513.10346598,0.00049315,120]
[320865904,1711651840616,-338.89737014,0.00049315,120]
[320865906,1711651840625,-500.0,0.00049315,120]
[320865908,1711651840635,-500.0,0.00049315,120]
[320865910,1711651840644,-500.0,0.00049315,120]
[320865912,1711651840654,-500.0,0.00049315,120]
[320865914,1711651840663,-500.0,0.00049315,120]
[320865916,1711651840671,-498.21353986,0.00049315,120]
[320865918,1711651840681,-500.0,0.00049315,120]
[320865920,1711651840690,-713.47,0.00049315,120]
[320865923,1711651840699,-961.61,0.00049315,120]
[320865925,1711651840709,-500.0,0.00049315,120]
[320865927,1711651840718,-500.0,0.00049315,120]
[320865929,1711651840727,-500.0,0.00049315,120]
[320865930,1711651840736,-500.0,0.00049315,120]
[320865932,1711651840745,-541.86,0.00049315,120]
[320865934,1711651840754,-500.0,0.00049315,120]
[320865936,1711651840764,-500.0,0.00049315,120]
[320865939,1711651840773,-500.0,0.00049315,120]
[320865941,1711651840782,-500.0,0.00049315,120]
[320865943,1711651840792,-500.0,0.00049315,120]
[320865945,1711651840801,-500.0,0.00049315,120]
[320865947,1711651840810,-500.0,0.00049315,120]
[320865949,1711651840822,-203.93631544,0.00049315,120]
[320865951,1711651840831,-585.26,0.00049315,120]
[320865953,1711651840840,-502.96,0.00049315,120]
[320865955,1711651840850,-500.0,0.00049315,120]
[320865957,1711651840859,-1416.4,0.00049315,120]
[320865959,1711651840868,-500.0,0.00049315,120]
[320865961,1711651840878,-500.0,0.00049315,120]
[320865963,1711651840887,-1459.23,0.00049315,120]
[320865965,1711651840896,-500.0,0.00049315,120]
[320865967,1711651840906,-500.0,0.00049315,120]
[320865969,1711651840915,-1526.66,0.00049315,120]
[320865971,1711651840924,-955.88,0.00049315,120]
[320865973,1711651840933,-500.0,0.00049315,120]
[320865975,1711651840943,-500.0,0.00049315,120]
[320865977,1711651840952,-261.16013046,0.00049315,120]
[320865979,1711651840963,-1779.8,0.00049315,120]
[320865981,1711651840973,-1592.82,0.00049315,120]
[320865983,1711651840982,-500.0,0.00049315,120]
[320865985,1711651840991,-500.0,0.00049315,120]
[320865987,1711651841001,-500.0,0.00049315,120]
[320865989,1711651841011,-189.22398771,0.00049315,120]
[320865991,1711651841033,-150.28790783,0.00049315,120]
[320865993,1711651841042,-815.55055842,0.00049315,120]
[320865995,1711651841054,-2515.29944158,0.00049315,120]
[320865997,1711651841065,-500.0,0.00049315,120]
[320865999,1711651841076,-500.0,0.00049315,120]
[320866001,1711651841085,-176.10044,0.00049315,46]
[320866002,1711651841096,-1771.49,0.00049315,120]
[320866003,1711651841105,-586.7,0.00049315,120]
[320866005,1711651841114,-710.17,0.00049315,120]
[320866007,1711651841124,-1289.08,0.00049315,120]
[320866009,1711651841133,-552.21,0.00049315,120]
[320866011,1711651841142,-1834.48,0.00049315,120]
[320866013,1711651841152,-500.0,0.00049315,120]
[320866015,1711651841161,-500.0,0.00049315,120]
[320866016,1711651841170,-849.79,0.00049315,2]
[320866018,1711651841180,-852.45,0.00049315,120]
[320866020,1711651841190,-1790.13,0.00049315,120]
[320866022,1711651841199,-500.0,0.00049315,120]
[320866023,1711651841208,-1773.69,0.00049315,120]
[320866025,1711651841218,-500.0,0.00049315,120]
[320866027,1711651841227,-565.07,0.00049315,120]
[320866029,1711651841236,-2394.52,0.00049315,120]
[320866031,1711651841245,-2190.05,0.00049315,120]
[320866032,1711651841254,-1442.78,0.00049315,120]
[320866034,1711651841263,-500.0,0.00049315,120]
[320866036,1711651841273,-500.0,0.00049315,120]
[320866038,1711651841282,-1941.21,0.00049315,120]
[320866040,1711651841291,-510.58,0.00049315,120]
[320866042,1711651841300,-1920.28,0.00049315,120]
[320866044,1711651841309,-922.31,0.00049315,120]
[320866045,1711651841318,-625.75,0.00049315,120]
[320866047,1711651841329,-500.0,0.00049315,120]
[320866049,1711651841338,-500.0,0.00049315,120]
[320866051,1711651841348,-781.48,0.00049315,120]
[320866053,1711651841357,-500.0,0.00049315,120]
[320866055,1711651841366,-500.0,0.00049315,120]
[320866057,1711651841375,-1717.99,0.00049315,120]
[320866058,1711651841385,-500.0,0.00049315,120]
[320866060,1711651841395,-2153.89,0.00049315,120]
[320866062,1711651841404,-2490.14,0.00049315,120]
[320866064,1711651841413,-1512.94,0.00049315,120]
[320866066,1711651841422,-500.0,0.00049315,120]
[320866068,1711651841431,-500.0,0.00049315,120]
[320866070,1711651841440,-1979.91,0.00049315,120]
[320866072,1711651841450,-500.0,0.00049315,120]
[320866073,1711651841459,-1145.48,0.00049315,120]
[320866075,1711651841468,-1019.07,0.00049315,120]
[320866077,1711651841477,-479.6035525,0.00049315,120]
[320866079,1711651841486,-1565.87,0.00049315,120]
[320866081,1711651841495,-866.22,0.00049315,120]
[320866083,1711651841504,-9854.26,0.00049315,120]
[320866084,1711651841513,-500.0,0.00049315,120]
[320866086,1711651841522,-3247.33,0.00049315,120]
[320866088,1711651841532,-500.0,0.00049315,120]
[320866090,1711651841541,-500.0,0.00049315,120]
[320866091,1711651841550,-10062.42,0.00049315,120]
[320866093,1711651841559,-11686.85,0.00049315,120]
[320866095,1711651841568,-1654.73,0.00049315,120]
[320866097,1711651841582,-500.0,0.00049315,120]
[320866098,1711651841592,-2650.37,0.00049315,120]
[320866099,1711651841601,-769.23,0.00049315,120]
[320866100,1711651841611,-500.0,0.00049315,120]
[320866101,1711651841622,-862.72,0.00049315,120]
[320866102,1711651841632,-500.0,0.00049315,120]
[320866103,1711651841641,-2565.61,0.00049315,120]
[320866104,1711651841651,-2323.09,0.00049315,120]
[320866105,1711651841660,-847.69,0.00049315,120]
[320866106,1711651841669,-1122.04,0.00049315,120]